[Event "Titled Tuesday Blitz November 08 Late 2022"]
[White "Lopez Martinez, Josep Manuel"]
[Black "czernikowskqa"]
[WhiteFideId "2212943"]
[WhiteElo "2471"]
[BlackElo "1961"]
[Result "1-0"]
[Round "01"]
[TimeControl "180+1"]
[Date "2022.11.09"]
[WhiteClock "0:01:01"]
[BlackClock "0:00:13"]

1. e4 {[%clk 0:02:58]}  c5 {[%clk 0:02:59]} 2. Nf3 {[%clk 0:02:58]}  Nc6 {[%clk 0:02:59]} 3. Bb5 {[%clk 0:02:56]}  Qc7 {[%clk 0:02:59]} 4. O-O {[%clk 0:02:54]}  e6 {[%clk 0:02:58]} 5. Re1 {[%clk 0:02:53]}  Nf6 {[%clk 0:02:57]} 6. c3 {[%clk 0:02:53]}  d5 {[%clk 0:02:54]} 7. e5 {[%clk 0:02:51]}  Nd7 {[%clk 0:02:53]} 8. d4 {[%clk 0:02:50]}  Be7 {[%clk 0:02:41]} 9. a3 {[%clk 0:02:46]}  a5 {[%clk 0:02:38]} 10. Be3 {[%clk 0:02:40]}  Qb6 {[%clk 0:02:36]} 11. a4 {[%clk 0:02:35]}  Na7 {[%clk 0:02:32]} 12. dxc5 {[%clk 0:02:34]}  Bxc5 {[%clk 0:02:30]} 13. Bxc5 {[%clk 0:02:34]}  Qxc5 {[%clk 0:02:31]} 14. Na3 {[%clk 0:02:30]}  Nxb5 {[%clk 0:02:28]} 15. Nxb5 {[%clk 0:02:29]}  O-O {[%clk 0:02:26]} 16. Qd4 {[%clk 0:02:23]}  b6 {[%clk 0:02:15]} 17. b4 {[%clk 0:02:23]}  Qxd4 {[%clk 0:01:57]} 18. Nfxd4 {[%clk 0:02:21]}  Ba6 {[%clk 0:01:57]} 19. Nd6 {[%clk 0:02:18]}  Rfd8 {[%clk 0:01:41]} 20. b5 {[%clk 0:02:16]}  Bc8 {[%clk 0:01:37]} 21. Nc6 {[%clk 0:02:16]}  Rf8 {[%clk 0:01:35]} 22. Ne7+ {[%clk 0:02:15]}  Kh8 {[%clk 0:01:34]} 23. Nexc8 {[%clk 0:02:15]}  Rfxc8 {[%clk 0:01:35]} 24. Nxc8 {[%clk 0:02:14]}  Rxc8 {[%clk 0:01:36]} 25. c4 {[%clk 0:02:14]}  Rxc4 {[%clk 0:01:35]} 26. Rac1 {[%clk 0:02:12]}  Nxe5 {[%clk 0:01:25]} 27. f4 {[%clk 0:02:09]}  Rxc1 {[%clk 0:01:20]} 28. Rxc1 {[%clk 0:02:09]}  Nc4 {[%clk 0:01:20]} 29. Kf2 {[%clk 0:02:10]}  Kg8 {[%clk 0:01:19]} 30. Ke2 {[%clk 0:02:02]}  Kf8 {[%clk 0:01:19]} 31. Kd3 {[%clk 0:02:02]}  Ke7 {[%clk 0:01:16]} 32. Kd4 {[%clk 0:02:01]}  Kd6 {[%clk 0:01:16]} 33. g4 {[%clk 0:01:58]}  f6 {[%clk 0:01:16]} 34. Kc3 {[%clk 0:01:52]}  h6 {[%clk 0:01:12]} 35. h4 {[%clk 0:01:51]}  Kc5 {[%clk 0:01:07]} 36. Re1 {[%clk 0:01:48]}  Kd6 {[%clk 0:01:06]} 37. g5 {[%clk 0:01:47]}  hxg5 {[%clk 0:00:51]} 38. fxg5 {[%clk 0:01:46]}  fxg5 {[%clk 0:00:50]} 39. hxg5 {[%clk 0:01:36]}  e5 {[%clk 0:00:50]} 40. Rf1 {[%clk 0:01:36]}  Ke7 {[%clk 0:00:48]} 41. g6 {[%clk 0:01:36]}  Nd6 {[%clk 0:00:45]} 42. Kd3 {[%clk 0:01:35]}  Ke6 {[%clk 0:00:38]} 43. Rf8 {[%clk 0:01:34]}  e4+ {[%clk 0:00:34]} 44. Kc3 {[%clk 0:01:31]}  Ke5 {[%clk 0:00:28]} 45. Rf7 {[%clk 0:01:31]}  d4+ {[%clk 0:00:23]} 46. Kc2 {[%clk 0:01:31]}  Nf5 {[%clk 0:00:21]} 47. Rb7 {[%clk 0:01:22]}  e3 {[%clk 0:00:18]} 48. Kd3 {[%clk 0:01:19]}  Ne7 {[%clk 0:00:13]} 49. Rxb6 {[%clk 0:01:17]}  Nd5 {[%clk 0:00:13]} 50. Rb8 {[%clk 0:01:16]}  Nf4+ {[%clk 0:00:14]} 51. Kc2 {[%clk 0:01:10]}  d3+ {[%clk 0:00:14]} 52. Kc3 {[%clk 0:01:10]}  Ke4 {[%clk 0:00:14]} 53. Re8+ {[%clk 0:01:09]}  Kf3 {[%clk 0:00:15]} 54. b6 {[%clk 0:01:09]}  Nd5+ {[%clk 0:00:14]} 55. Kxd3 {[%clk 0:01:07]}  Nxb6 {[%clk 0:00:13]} 56. Rxe3+ {[%clk 0:01:07]}  Kf4 {[%clk 0:00:13]} 57. Re4+ {[%clk 0:01:06]}  Kf5 {[%clk 0:00:14]} 58. Rd4 {[%clk 0:01:01]}  Kxg6 {[%clk 0:00:13]} 59. Rd6+ {[%clk 0:01:01]} 1-0


[Site "https://www.chess.com"]

[Event "Titled Tuesday Blitz November 08 Late 2022"]
[White "Makaraci, Tunahan"]
[Black "Milikow, Yoav"]
[WhiteFideId "6356559"]
[BlackFideId "2822237"]
[WhiteElo "2161"]
[BlackElo "2341"]
[Result "0-1"]
[Round "01"]
[TimeControl "180+1"]
[Date "2022.11.09"]
[WhiteClock "0:00:45"]
[BlackClock "0:00:05"]

1. e4 {[%clk 0:03:00]}  e5 {[%clk 0:02:59]} 2. Nf3 {[%clk 0:02:58]}  Nc6 {[%clk 0:02:58]} 3. Bc4 {[%clk 0:02:59]}  Nf6 {[%clk 0:02:57]} 4. d4 {[%clk 0:02:58]}  exd4 {[%clk 0:02:57]} 5. e5 {[%clk 0:02:59]}  d5 {[%clk 0:02:57]} 6. Bb5 {[%clk 0:02:59]}  Ne4 {[%clk 0:02:57]} 7. Nxd4 {[%clk 0:02:59]}  Bc5 {[%clk 0:02:57]} 8. Be3 {[%clk 0:02:55]}  O-O {[%clk 0:02:57]} 9. Nxc6 {[%clk 0:02:53]}  bxc6 {[%clk 0:02:56]} 10. Bxc5 {[%clk 0:02:53]}  Nxc5 {[%clk 0:02:57]} 11. Bxc6 {[%clk 0:02:53]}  Rb8 {[%clk 0:02:57]} 12. Qxd5 {[%clk 0:02:48]}  Qe7 {[%clk 0:02:57]} 13. O-O {[%clk 0:02:48]}  Rxb2 {[%clk 0:02:58]} 14. Nc3 {[%clk 0:02:35]}  Rxc2 {[%clk 0:02:51]} 15. Rac1 {[%clk 0:02:35]}  Rxc1 {[%clk 0:02:49]} 16. Rxc1 {[%clk 0:02:35]}  Rd8 {[%clk 0:02:37]} 17. Qc4 {[%clk 0:02:34]}  Qxe5 {[%clk 0:02:26]} 18. Nd5 {[%clk 0:02:31]}  Ne6 {[%clk 0:02:14]} 19. Ne7+ {[%clk 0:02:26]}  Kh8 {[%clk 0:02:08]} 20. Nxc8 {[%clk 0:02:20]}  Rxc8 {[%clk 0:02:05]} 21. Bd7 {[%clk 0:02:19]}  Rd8 {[%clk 0:02:02]} 22. Bxe6 {[%clk 0:02:14]}  fxe6 {[%clk 0:01:42]} 23. g3 {[%clk 0:02:14]}  h6 {[%clk 0:01:34]} 24. Kg2 {[%clk 0:01:43]}  Rd2 {[%clk 0:01:16]} 25. Qxc7 {[%clk 0:01:37]}  Qd5+ {[%clk 0:01:06]} 26. Kg1 {[%clk 0:01:34]}  Rxa2 {[%clk 0:01:00]} 27. Re1 {[%clk 0:01:26]}  Kh7 {[%clk 0:00:50]} 28. Qf7 {[%clk 0:01:19]}  Ra6 {[%clk 0:00:21]} 29. h4 {[%clk 0:01:18]}  Qf5 {[%clk 0:00:11]} 30. Qd7 {[%clk 0:01:16]}  Ra2 {[%clk 0:00:09]} 31. Qd4 {[%clk 0:01:15]}  a5 {[%clk 0:00:08]} 32. Kg2 {[%clk 0:01:15]}  a4 {[%clk 0:00:08]} 33. Rf1 {[%clk 0:01:03]}  a3 {[%clk 0:00:08]} 34. Qc4 {[%clk 0:01:03]}  Rb2 {[%clk 0:00:07]} 35. Qc3 {[%clk 0:00:58]}  Qd5+ {[%clk 0:00:06]} 36. Kh2 {[%clk 0:00:58]}  Rb3 {[%clk 0:00:04]} 37. Qc2+ {[%clk 0:00:57]}  Qd3 {[%clk 0:00:04]} 38. Qxd3+ {[%clk 0:00:49]}  Rxd3 {[%clk 0:00:05]} 39. Ra1 {[%clk 0:00:48]}  Kg6 {[%clk 0:00:05]} 40. Kg2 {[%clk 0:00:48]}  Kf5 {[%clk 0:00:06]} 41. Ra2 {[%clk 0:00:49]}  Ke4 {[%clk 0:00:06]} 42. Re2+ {[%clk 0:00:49]}  Kd5 {[%clk 0:00:06]} 43. Rc2 {[%clk 0:00:48]}  e5 {[%clk 0:00:06]} 44. Kf1 {[%clk 0:00:48]}  Rb3 {[%clk 0:00:06]} 45. Rd2+ {[%clk 0:00:47]}  Kc4 {[%clk 0:00:05]} 46. Rd8 {[%clk 0:00:45]}  a2 {[%clk 0:00:05]} 47. Rc8+ {[%clk 0:00:45]}  Kd5 {[%clk 0:00:05]} 48. Rd8+ {[%clk 0:00:45]}  Ke6 {[%clk 0:00:05]} 0-1


[Site "https://www.chess.com"]

[Event "Titled Tuesday Blitz November 08 Late 2022"]
[White "Maltsevskaya, Aleksandra"]
[Black "Onslow, Alfie"]
[WhiteFideId "24174041"]
[BlackFideId "436976"]
[WhiteElo "2282"]
[BlackElo "2015"]
[Result "1-0"]
[Round "01"]
[TimeControl "180+1"]
[Date "2022.11.09"]
[WhiteClock "0:00:40"]
[BlackClock "0:00:10"]

1. Nf3 {[%clk 0:02:37]}  c5 {[%clk 0:02:58]} 2. c4 {[%clk 0:02:37]}  Nc6 {[%clk 0:02:57]} 3. Nc3 {[%clk 0:02:36]}  e5 {[%clk 0:02:56]} 4. g3 {[%clk 0:02:35]}  Nf6 {[%clk 0:02:55]} 5. Bg2 {[%clk 0:02:35]}  Be7 {[%clk 0:02:54]} 6. O-O {[%clk 0:02:34]}  O-O {[%clk 0:02:54]} 7. d3 {[%clk 0:02:30]}  d6 {[%clk 0:02:53]} 8. a3 {[%clk 0:02:30]}  a5 {[%clk 0:02:49]} 9. Rb1 {[%clk 0:02:30]}  h6 {[%clk 0:02:46]} 10. Ne1 {[%clk 0:02:30]}  Be6 {[%clk 0:02:44]} 11. Nc2 {[%clk 0:02:31]}  Qd7 {[%clk 0:02:40]} 12. b4 {[%clk 0:02:30]}  axb4 {[%clk 0:02:38]} 13. axb4 {[%clk 0:02:31]}  b6 {[%clk 0:02:35]} 14. bxc5 {[%clk 0:02:29]}  bxc5 {[%clk 0:02:34]} 15. Rb6 {[%clk 0:02:26]}  Rfc8 {[%clk 0:02:25]} 16. Ne3 {[%clk 0:02:17]}  Bh3 {[%clk 0:02:24]} 17. Ned5 {[%clk 0:02:17]}  Bxg2 {[%clk 0:02:18]} 18. Kxg2 {[%clk 0:02:17]}  Nxd5 {[%clk 0:02:17]} 19. Nxd5 {[%clk 0:02:18]}  Bd8 {[%clk 0:02:17]} 20. Rb2 {[%clk 0:02:16]}  Rcb8 {[%clk 0:02:14]} 21. Rxb8 {[%clk 0:02:11]}  Rxb8 {[%clk 0:02:14]} 22. Qa4 {[%clk 0:02:11]}  Qb7 {[%clk 0:02:09]} 23. e4 {[%clk 0:02:11]}  Ra8 {[%clk 0:01:54]} 24. Qd1 {[%clk 0:02:08]}  Ra2 {[%clk 0:01:47]} 25. Qg4 {[%clk 0:02:05]}  Kf8 {[%clk 0:01:31]} 26. Qf5 {[%clk 0:01:46]}  Kg8 {[%clk 0:01:17]} 27. h4 {[%clk 0:01:45]}  Nd4 {[%clk 0:01:16]} 28. Qg4 {[%clk 0:01:45]}  Kh8 {[%clk 0:01:05]} 29. Kh3 {[%clk 0:01:43]}  Ra7 {[%clk 0:00:57]} 30. f4 {[%clk 0:01:42]}  Qd7 {[%clk 0:00:55]} 31. fxe5 {[%clk 0:01:41]}  dxe5 {[%clk 0:00:51]} 32. Be3 {[%clk 0:01:42]}  Qxg4+ {[%clk 0:00:50]} 33. Kxg4 {[%clk 0:01:43]}  f6 {[%clk 0:00:50]} 34. Bxd4 {[%clk 0:01:39]}  exd4 {[%clk 0:00:44]} 35. Rb1 {[%clk 0:01:40]}  Bc7 {[%clk 0:00:44]} 36. h5 {[%clk 0:01:39]}  Be5 {[%clk 0:00:40]} 37. Rb5 {[%clk 0:01:35]}  Ra3 {[%clk 0:00:40]} 38. Kf5 {[%clk 0:01:23]}  Rxd3 {[%clk 0:00:39]} 39. Rxc5 {[%clk 0:01:19]}  Rxg3 {[%clk 0:00:36]} 40. Rc8+ {[%clk 0:01:06]}  Kh7 {[%clk 0:00:35]} 41. c5 {[%clk 0:01:05]}  d3 {[%clk 0:00:35]} 42. Ne7 {[%clk 0:01:03]}  Rg5+ {[%clk 0:00:27]} 43. Ke6 {[%clk 0:01:04]}  Rxh5 {[%clk 0:00:25]} 44. c6 {[%clk 0:01:04]}  Bd6 {[%clk 0:00:17]} 45. Rd8 {[%clk 0:00:53]}  Bxe7 {[%clk 0:00:16]} 46. Kxe7 {[%clk 0:00:52]}  Rc5 {[%clk 0:00:16]} 47. Kd6 {[%clk 0:00:49]}  Rc3 {[%clk 0:00:15]} 48. Kc7 {[%clk 0:00:47]}  h5 {[%clk 0:00:14]} 49. Kb7 {[%clk 0:00:47]}  h4 {[%clk 0:00:13]} 50. c7 {[%clk 0:00:48]}  Rb3+ {[%clk 0:00:13]} 51. Ka6 {[%clk 0:00:47]}  Ra3+ {[%clk 0:00:14]} 52. Kb5 {[%clk 0:00:47]}  Rb3+ {[%clk 0:00:12]} 53. Kc4 {[%clk 0:00:47]}  Rb1 {[%clk 0:00:12]} 54. c8=Q {[%clk 0:00:47]}  Rc1+ {[%clk 0:00:12]} 55. Kxd3 {[%clk 0:00:47]}  Rxc8 {[%clk 0:00:13]} 56. Rxc8 {[%clk 0:00:48]}  Kg6 {[%clk 0:00:13]} 57. Ke3 {[%clk 0:00:48]}  Kg5 {[%clk 0:00:13]} 58. Kf3 {[%clk 0:00:48]}  h3 {[%clk 0:00:12]} 59. Rc5+ {[%clk 0:00:47]}  Kh4 {[%clk 0:00:12]} 60. Rc8 {[%clk 0:00:46]}  Kg5 {[%clk 0:00:10]} 61. Rh8 {[%clk 0:00:46]}  g6 {[%clk 0:00:10]} 62. Rxh3 {[%clk 0:00:45]}  f5 {[%clk 0:00:11]} 63. e5 {[%clk 0:00:43]}  f4 {[%clk 0:00:09]} 64. e6 {[%clk 0:00:40]}  Kf6 {[%clk 0:00:09]} 65. Kxf4 {[%clk 0:00:40]}  Kxe6 {[%clk 0:00:09]} 66. Kg5 {[%clk 0:00:40]}  Kf7 {[%clk 0:00:10]} 67. Rh6 {[%clk 0:00:40]}  Kg8 {[%clk 0:00:10]} 68. Rxg6+ {[%clk 0:00:41]}  Kh8 {[%clk 0:00:11]} 69. Kf6 {[%clk 0:00:39]}  Kh7 {[%clk 0:00:09]} 70. Kf7 {[%clk 0:00:39]}  Kh8 {[%clk 0:00:10]} 71. Rh6# {[%clk 0:00:40]} 1-0


[Site "https://www.chess.com"]

[Event "Titled Tuesday Blitz November 08 Late 2022"]
[White "Mardov, Dimitar"]
[Black "Alexikov, Alexander"]
[WhiteFideId "30919495"]
[BlackFideId "14103958"]
[WhiteElo "2332"]
[BlackElo "2222"]
[Result "1-0"]
[Round "01"]
[TimeControl "180+1"]
[Date "2022.11.09"]
[WhiteClock "0:00:03"]
[BlackClock "0:00:03"]

1. e4 {[%clk 0:03:00]}  c5 {[%clk 0:02:58]} 2. Nf3 {[%clk 0:02:46]}  d6 {[%clk 0:02:58]} 3. d4 {[%clk 0:02:46]}  cxd4 {[%clk 0:02:58]} 4. Nxd4 {[%clk 0:02:47]}  Nf6 {[%clk 0:02:57]} 5. Nc3 {[%clk 0:02:47]}  a6 {[%clk 0:02:57]} 6. h3 {[%clk 0:02:36]}  e5 {[%clk 0:02:55]} 7. Nb3 {[%clk 0:02:33]}  Be6 {[%clk 0:02:54]} 8. f4 {[%clk 0:02:33]}  Qc7 {[%clk 0:02:51]} 9. f5 {[%clk 0:02:23]}  Bc4 {[%clk 0:02:51]} 10. g4 {[%clk 0:02:17]}  h6 {[%clk 0:02:49]} 11. Bd3 {[%clk 0:02:13]}  Nbd7 {[%clk 0:02:46]} 12. Qf3 {[%clk 0:02:11]}  b5 {[%clk 0:02:39]} 13. h4 {[%clk 0:02:08]}  b4 {[%clk 0:02:33]} 14. Ne2 {[%clk 0:02:08]}  d5 {[%clk 0:02:20]} 15. Ng3 {[%clk 0:02:06]}  Nc5 {[%clk 0:01:58]} 16. Bxc4 {[%clk 0:02:02]}  dxc4 {[%clk 0:01:57]} 17. Nxc5 {[%clk 0:02:02]}  Bxc5 {[%clk 0:01:55]} 18. g5 {[%clk 0:01:59]}  Nd7 {[%clk 0:01:47]} 19. Bd2 {[%clk 0:01:05]}  hxg5 {[%clk 0:01:39]} 20. hxg5 {[%clk 0:01:04]}  Rxh1+ {[%clk 0:01:33]} 21. Qxh1 {[%clk 0:01:05]}  O-O-O {[%clk 0:01:31]} 22. Qf1 {[%clk 0:00:57]}  Bd4 {[%clk 0:01:27]} 23. c3 {[%clk 0:00:56]}  bxc3 {[%clk 0:01:26]} 24. bxc3 {[%clk 0:00:57]}  Bb6 {[%clk 0:01:25]} 25. Rb1 {[%clk 0:00:33]}  Nc5 {[%clk 0:01:23]} 26. f6 {[%clk 0:00:29]}  Nd3+ {[%clk 0:01:19]} 27. Ke2 {[%clk 0:00:29]}  g6 {[%clk 0:01:17]} 28. Qh3+ {[%clk 0:00:28]}  Kb7 {[%clk 0:01:04]} 29. Qf1 {[%clk 0:00:22]}  Nf4+ {[%clk 0:01:01]} 30. Ke1 {[%clk 0:00:21]}  Ka7 {[%clk 0:00:49]} 31. a4 {[%clk 0:00:13]}  Rd3 {[%clk 0:00:45]} 32. Ne2 {[%clk 0:00:13]}  Nxe2 {[%clk 0:00:41]} 33. Qxe2 {[%clk 0:00:12]}  Qd7 {[%clk 0:00:35]} 34. a5 {[%clk 0:00:08]}  Bxa5 {[%clk 0:00:34]} 35. Be3+ {[%clk 0:00:08]}  Ka8 {[%clk 0:00:31]} 36. Kf2 {[%clk 0:00:09]}  Qh3 {[%clk 0:00:26]} 37. Rg1 {[%clk 0:00:08]}  Bxc3 {[%clk 0:00:13]} 38. Rg3 {[%clk 0:00:09]}  Qh2+ {[%clk 0:00:12]} 39. Rg2 {[%clk 0:00:09]}  Qh4+ {[%clk 0:00:11]} 40. Kf1 {[%clk 0:00:08]}  Qxe4 {[%clk 0:00:11]} 41. Bc5 {[%clk 0:00:05]}  Qf5+ {[%clk 0:00:09]} 42. Rf2 {[%clk 0:00:05]}  Qh3+ {[%clk 0:00:05]} 43. Rg2 {[%clk 0:00:05]}  Rf3+ {[%clk 0:00:04]} 44. Kg1 {[%clk 0:00:04]}  Qf5 {[%clk 0:00:03]} 45. Qxc4 {[%clk 0:00:03]} 1-0


[Site "https://www.chess.com"]

[Event "Titled Tuesday Blitz November 08 Late 2022"]
[White "Martinez Reyes, Pedro Ramon"]
[Black "Jorquera, Marcelo"]
[WhiteFideId "3901807"]
[BlackFideId "3401197"]
[WhiteElo "2354"]
[BlackElo "2136"]
[Result "1-0"]
[Round "01"]
[TimeControl "180+1"]
[Date "2022.11.09"]
[WhiteClock "0:01:06"]
[BlackClock "0:00:01"]

1. Nf3 {[%clk 0:03:00]}  Nf6 {[%clk 0:02:59]} 2. g3 {[%clk 0:02:58]}  g6 {[%clk 0:02:59]} 3. Bg2 {[%clk 0:02:59]}  Bg7 {[%clk 0:02:59]} 4. O-O {[%clk 0:03:00]}  O-O {[%clk 0:03:00]} 5. d4 {[%clk 0:03:01]}  d6 {[%clk 0:03:00]} 6. a4 {[%clk 0:03:00]}  Nc6 {[%clk 0:02:54]} 7. Nc3 {[%clk 0:02:58]}  e5 {[%clk 0:02:52]} 8. dxe5 {[%clk 0:02:48]}  Nxe5 {[%clk 0:02:52]} 9. Nxe5 {[%clk 0:02:45]}  dxe5 {[%clk 0:02:52]} 10. a5 {[%clk 0:02:45]}  Rb8 {[%clk 0:02:27]} 11. Qxd8 {[%clk 0:02:28]}  Rxd8 {[%clk 0:02:26]} 12. Bg5 {[%clk 0:02:29]}  Re8 {[%clk 0:02:01]} 13. Nb5 {[%clk 0:02:12]}  Re7 {[%clk 0:01:07]} 14. Nxa7 {[%clk 0:02:06]}  Bd7 {[%clk 0:01:07]} 15. c4 {[%clk 0:02:00]}  c6 {[%clk 0:01:03]} 16. a6 {[%clk 0:02:00]}  bxa6 {[%clk 0:00:57]} 17. Rxa6 {[%clk 0:01:55]}  Rxb2 {[%clk 0:00:43]} 18. Nxc6 {[%clk 0:01:55]}  Re6 {[%clk 0:00:34]} 19. Ra8+ {[%clk 0:01:52]}  Ne8 {[%clk 0:00:25]} 20. Bd5 {[%clk 0:01:42]}  Rxc6 {[%clk 0:00:19]} 21. Bxc6 {[%clk 0:01:21]}  Bxc6 {[%clk 0:00:20]} 22. Rc8 {[%clk 0:01:19]}  Bd7 {[%clk 0:00:03]} 23. Rd8 {[%clk 0:01:19]}  Bc6 {[%clk 0:00:01]} 24. Bc1 {[%clk 0:01:06]} 1-0


[Site "https://www.chess.com"]

[Event "Titled Tuesday Blitz November 08 Late 2022"]
[White "Melaugh, Shane"]
[Black "Boruchovsky, Avital"]
[WhiteFideId "2509580"]
[BlackFideId "2800055"]
[WhiteElo "2025"]
[BlackElo "2458"]
[Result "0-1"]
[Round "01"]
[TimeControl "180+1"]
[Date "2022.11.09"]
[WhiteClock "0:00:10"]
[BlackClock "0:00:26"]

1. c4 {[%clk 0:03:00]}  b6 {[%clk 0:02:59]} 2. d4 {[%clk 0:02:55]}  Bb7 {[%clk 0:02:59]} 3. Nc3 {[%clk 0:02:56]}  e6 {[%clk 0:02:54]} 4. e4 {[%clk 0:02:54]}  Bb4 {[%clk 0:02:55]} 5. Bd3 {[%clk 0:02:53]}  f5 {[%clk 0:02:53]} 6. Qh5+ {[%clk 0:02:53]}  g6 {[%clk 0:02:51]} 7. Qe2 {[%clk 0:02:53]}  Nc6 {[%clk 0:02:49]} 8. d5 {[%clk 0:02:25]}  Nd4 {[%clk 0:02:32]} 9. Qe3 {[%clk 0:02:22]}  Bc5 {[%clk 0:02:32]} 10. Qf4 {[%clk 0:02:18]}  d6 {[%clk 0:02:21]} 11. dxe6 {[%clk 0:02:14]}  Nxe6 {[%clk 0:02:19]} 12. Qg3 {[%clk 0:02:05]}  fxe4 {[%clk 0:01:59]} 13. Bxe4 {[%clk 0:02:06]}  Bxe4 {[%clk 0:01:56]} 14. Nxe4 {[%clk 0:02:07]}  Nf6 {[%clk 0:01:52]} 15. Nxf6+ {[%clk 0:01:25]}  Qxf6 {[%clk 0:01:53]} 16. Nf3 {[%clk 0:01:25]}  O-O {[%clk 0:01:42]} 17. O-O {[%clk 0:01:25]}  Nf4 {[%clk 0:01:38]} 18. Bxf4 {[%clk 0:01:21]}  Qxf4 {[%clk 0:01:39]} 19. Qxf4 {[%clk 0:01:19]}  Rxf4 {[%clk 0:01:39]} 20. b3 {[%clk 0:01:20]}  Re8 {[%clk 0:01:39]} 21. Rfe1 {[%clk 0:01:19]}  Rfe4 {[%clk 0:01:37]} 22. Rxe4 {[%clk 0:01:18]}  Rxe4 {[%clk 0:01:38]} 23. Re1 {[%clk 0:01:18]}  Rf4 {[%clk 0:01:29]} 24. Re7 {[%clk 0:01:15]}  d5 {[%clk 0:01:28]} 25. Rxc7 {[%clk 0:01:01]}  dxc4 {[%clk 0:01:28]} 26. bxc4 {[%clk 0:00:52]}  Rxc4 {[%clk 0:01:26]} 27. Kf1 {[%clk 0:00:39]}  Rc2 {[%clk 0:01:23]} 28. Rc8+ {[%clk 0:00:18]}  Kg7 {[%clk 0:01:21]} 29. Rc7+ {[%clk 0:00:18]}  Kh6 {[%clk 0:01:14]} 30. Rxa7 {[%clk 0:00:15]}  Rxf2+ {[%clk 0:01:14]} 31. Ke1 {[%clk 0:00:15]}  Rxg2 {[%clk 0:01:15]} 32. a4 {[%clk 0:00:13]}  Rf2 {[%clk 0:01:12]} 33. Ne5 {[%clk 0:00:11]}  Rf5 {[%clk 0:01:03]} 34. Ng4+ {[%clk 0:00:04]}  Kg5 {[%clk 0:01:02]} 35. h3 {[%clk 0:00:05]}  h5 {[%clk 0:01:02]} 36. Nh2 {[%clk 0:00:03]}  Rf2 {[%clk 0:00:58]} 37. Nf1 {[%clk 0:00:02]}  Ra2 {[%clk 0:00:56]} 38. Nd2 {[%clk 0:00:02]}  Bb4 {[%clk 0:00:56]} 39. Ke2 {[%clk 0:00:02]}  Rxd2+ {[%clk 0:00:55]} 40. Kf3 {[%clk 0:00:03]}  Ra2 {[%clk 0:00:55]} 41. Ra6 {[%clk 0:00:03]}  Bc5 {[%clk 0:00:54]} 42. Ra8 {[%clk 0:00:03]}  Kh4 {[%clk 0:00:53]} 43. Kf4 {[%clk 0:00:02]}  g5+ {[%clk 0:00:52]} 44. Kf5 {[%clk 0:00:03]}  Rf2+ {[%clk 0:00:51]} 45. Kg6 {[%clk 0:00:04]}  Bd4 {[%clk 0:00:47]} 46. a5 {[%clk 0:00:04]}  bxa5 {[%clk 0:00:32]} 47. Rxa5 {[%clk 0:00:05]}  Rf6+ {[%clk 0:00:32]} 48. Kh7 {[%clk 0:00:06]}  Rd6 {[%clk 0:00:31]} 49. Rb5 {[%clk 0:00:03]}  Be3 {[%clk 0:00:31]} 50. Rb3 {[%clk 0:00:02]}  Bf4 {[%clk 0:00:31]} 51. Kg7 {[%clk 0:00:02]}  Re6 {[%clk 0:00:31]} 52. Kf7 {[%clk 0:00:02]}  Re3 {[%clk 0:00:31]} 53. Rb4 {[%clk 0:00:03]}  Kxh3 {[%clk 0:00:31]} 54. Kg6 {[%clk 0:00:04]}  h4 {[%clk 0:00:31]} 55. Kf5 {[%clk 0:00:05]}  Re5+ {[%clk 0:00:30]} 56. Kg6 {[%clk 0:00:05]}  Rc5 {[%clk 0:00:31]} 57. Kh5 {[%clk 0:00:06]}  g4+ {[%clk 0:00:28]} 58. Kg6 {[%clk 0:00:06]}  Bg3 {[%clk 0:00:28]} 59. Rb3 {[%clk 0:00:06]}  Kh2 {[%clk 0:00:26]} 60. Kf6 {[%clk 0:00:06]}  h3 {[%clk 0:00:26]} 61. Rb2+ {[%clk 0:00:07]}  Kg1 {[%clk 0:00:26]} 62. Rb1+ {[%clk 0:00:07]}  Kg2 {[%clk 0:00:26]} 63. Rb2+ {[%clk 0:00:08]}  Bf2 {[%clk 0:00:26]} 64. Kg6 {[%clk 0:00:09]}  h2 {[%clk 0:00:26]} 65. Rb1 {[%clk 0:00:09]}  h1=Q {[%clk 0:00:26]} 66. Rxh1 {[%clk 0:00:10]}  Kxh1 {[%clk 0:00:26]} 0-1


[Site "https://www.chess.com"]

[Event "Titled Tuesday Blitz November 08 Late 2022"]
[White "Melikyan, Gnel"]
[Black "Therrien, Alex L"]
[WhiteFideId "54109990"]
[BlackFideId "412856"]
[WhiteElo "2138"]
[BlackElo "2214"]
[Result "0-1"]
[Round "01"]
[TimeControl "180+1"]
[Date "2022.11.09"]
[WhiteClock "0:00:55"]
[BlackClock "0:00:43"]

1. e4 {[%clk 0:02:59]}  c6 {[%clk 0:02:59]} 2. d4 {[%clk 0:02:57]}  d5 {[%clk 0:03:00]} 3. Nc3 {[%clk 0:02:57]}  g6 {[%clk 0:02:58]} 4. h4 {[%clk 0:02:56]}  h5 {[%clk 0:02:57]} 5. e5 {[%clk 0:02:52]}  Bg7 {[%clk 0:02:53]} 6. f4 {[%clk 0:02:50]}  Bg4 {[%clk 0:02:49]} 7. Be2 {[%clk 0:02:49]}  Nh6 {[%clk 0:02:47]} 8. Be3 {[%clk 0:02:47]}  e6 {[%clk 0:02:46]} 9. Qd2 {[%clk 0:02:45]}  Nd7 {[%clk 0:02:40]} 10. O-O-O {[%clk 0:02:44]}  b5 {[%clk 0:02:39]} 11. Nf3 {[%clk 0:02:44]}  Nb6 {[%clk 0:02:35]} 12. b3 {[%clk 0:02:41]}  a5 {[%clk 0:02:34]} 13. a3 {[%clk 0:02:31]}  b4 {[%clk 0:02:31]} 14. Nb1 {[%clk 0:02:31]}  bxa3 {[%clk 0:02:29]} 15. Nxa3 {[%clk 0:02:32]}  a4 {[%clk 0:02:29]} 16. Kb2 {[%clk 0:02:31]}  axb3 {[%clk 0:02:29]} 17. cxb3 {[%clk 0:02:31]}  O-O {[%clk 0:02:09]} 18. Ra1 {[%clk 0:02:30]}  Qb8 {[%clk 0:02:07]} 19. Rhc1 {[%clk 0:02:17]}  Rc8 {[%clk 0:02:01]} 20. Kc2 {[%clk 0:01:54]}  Bf8 {[%clk 0:01:57]} 21. b4 {[%clk 0:01:51]}  Ra4 {[%clk 0:01:44]} 22. Rcb1 {[%clk 0:01:41]}  Qa7 {[%clk 0:01:43]} 23. Qc3 {[%clk 0:01:36]}  Bf5+ {[%clk 0:01:28]} 24. Bd3 {[%clk 0:01:32]}  Ra8 {[%clk 0:01:28]} 25. Bc1 {[%clk 0:01:27]}  Nc4 {[%clk 0:01:00]} 26. Nxc4 {[%clk 0:01:08]}  Bxd3+ {[%clk 0:00:44]} 27. Qxd3 {[%clk 0:00:55]}  dxc4 {[%clk 0:00:43]} 0-1


[Site "https://www.chess.com"]